bitfinex/quotes_BTCUSD_20230905
["timestamp","ask_amount","ask_price","bid_price","bid_amount"]
[1693930275792,0.0198,25804.0,25803.0,5.97634027]
[1693930276017,0.0198,25804.0,25803.0,5.97718027]
[1693930276213,0.0198,25804.0,25803.0,5.96992027]
[1693930276417,0.0198,25804.0,25803.0,5.97280027]
[1693930276618,0.0198,25804.0,25803.0,5.90146027]
[1693930277175,0.0198,25804.0,25803.0,5.95412027]
[1693930277382,0.0198,25804.0,25803.0,5.97430027]
[1693930277589,0.0198,25804.0,25803.0,5.97274027]
[1693930277786,0.0198,25804.0,25803.0,5.93403172]
[1693930277985,0.0198,25804.0,25803.0,6.02133172]
[1693930278187,0.0198,25804.0,25803.0,6.01971172]
[1693930278613,0.0198,25804.0,25803.0,6.01881172]
[1693930278986,0.0198,25804.0,25803.0,6.01929172]
[1693930279191,0.0198,25804.0,25803.0,6.0377242]
[1693930279395,0.0198,25804.0,25803.0,6.0184442]
[1693930279585,0.0198,25804.0,25803.0,6.0364042]
[1693930279817,0.0198,25804.0,25803.0,6.0362242]
[1693930280018,0.0198,25804.0,25803.0,6.0341842]
[1693930280230,0.0198,25804.0,25803.0,6.0340642]
[1693930280428,0.0198,25804.0,25803.0,6.06424358]
[1693930280845,0.0198,25804.0,25803.0,6.06394358]
[1693930281265,0.0198,25804.0,25803.0,6.06382358]
[1693930281423,0.0198,25804.0,25803.0,6.06376358]
[1693930281626,0.0198,25804.0,25803.0,6.06424358]
[1693930281823,0.0198,25804.0,25803.0,6.06664358]
[1693930282017,0.0198,25804.0,25803.0,6.06826358]
[1693930282221,0.0198,25804.0,25803.0,6.07084358]
[1693930282455,0.0198,25804.0,25803.0,6.07144358]
[1693930282751,0.0198,25804.0,25803.0,6.07384358]
[1693930282970,0.0198,25804.0,25803.0,6.07450358]
[1693930283185,0.0198,25804.0,25803.0,6.07654358]
[1693930283392,0.0198,25804.0,25803.0,6.07660358]
[1693930283599,0.0198,25804.0,25803.0,6.07702358]
[1693930283805,0.0198,25804.0,25803.0,6.07690358]
[1693930284012,0.0198,25804.0,25803.0,6.07606358]
[1693930284228,0.0198,25804.0,25803.0,6.07498358]
[1693930284435,0.0198,25804.0,25803.0,6.07618358]
[1693930284658,0.0198,25804.0,25803.0,6.07462358]
[1693930284854,0.0198,25804.0,25803.0,6.07390358]
[1693930285065,0.0198,25804.0,25803.0,6.07378358]
[1693930285271,0.0198,25804.0,25803.0,6.07600358]
[1693930285476,0.0198,25804.0,25803.0,6.07870358]
[1693930285604,0.0198,25804.0,25803.0,6.07750358]
[1693930285815,0.0198,25804.0,25803.0,6.09190358]
[1693930286057,0.0198,25804.0,25803.0,6.09166358]
[1693930286257,0.0198,25804.0,25803.0,6.09436358]
[1693930286465,0.0198,25804.0,25803.0,6.09292358]
[1693930286676,0.0198,25804.0,25803.0,6.09058358]
[1693930286882,0.0198,25804.0,25803.0,6.08920358]
[1693930287349,0.0198,25804.0,25803.0,6.08926358]
[1693930287547,0.0198,25804.0,25803.0,6.08956358]
[1693930287751,0.0198,25804.0,25803.0,6.09178358]
[1693930288033,0.0198,25804.0,25803.0,6.09724358]
[1693930288247,0.0198,25804.0,25803.0,6.09646358]
[1693930288481,0.0198,25804.0,25803.0,6.09640358]
[1693930288676,0.0198,25804.0,25803.0,6.09712358]
[1693930288878,0.0198,25804.0,25803.0,6.09718358]
[1693930289087,0.0198,25804.0,25803.0,6.09832358]
[1693930289295,0.0198,25804.0,25803.0,6.09778358]
[1693930289497,0.0198,25804.0,25803.0,6.09316358]
[1693930289648,0.0198,25804.0,25803.0,6.09064358]
[1693930289853,0.0198,25804.0,25803.0,6.09208358]
[1693930290597,0.0198,25804.0,25803.0,6.09022358]
[1693930290792,0.0198,25804.0,25803.0,6.08842358]
[1693930291030,0.0198,25804.0,25803.0,6.10306358]
[1693930291230,0.0198,25804.0,25803.0,6.10342358]
[1693930291438,0.0198,25804.0,25803.0,6.10072358]
[1693930291834,0.0198,25804.0,25803.0,6.10126358]
[1693930292032,0.0198,25804.0,25803.0,6.08004358]
[1693930292233,0.0198,25804.0,25803.0,6.21228358]
[1693930292443,0.0198,25804.0,25803.0,6.10360358]
[1693930292645,0.0198,25804.0,25803.0,6.10666358]
[1693930292875,0.0198,25804.0,25803.0,6.21240358]
[1693930293058,0.0198,25804.0,25803.0,6.23860358]
[1693930293283,0.0198,25804.0,25803.0,6.23824358]
[1693930293459,0.0198,25804.0,25803.0,6.24160358]
[1693930293693,0.0198,25804.0,25803.0,6.24220358]
[1693930293901,0.0198,25804.0,25803.0,6.24496358]
[1693930294100,0.0198,25804.0,25803.0,6.21744358]
[1693930294307,0.0198,25804.0,25803.0,6.21516358]
[1693930294416,0.0198,25804.0,25803.0,6.24064358]
[1693930294624,0.0198,25804.0,25803.0,6.10624358]
[1693930294829,0.0198,25804.0,25803.0,6.10588358]
[1693930295221,0.0198,25804.0,25803.0,6.10618358]
[1693930295656,0.0198,25804.0,25803.0,6.10120358]
[1693930295861,0.0198,25804.0,25803.0,6.19251015]
[1693930296096,0.0198,25804.0,25803.0,6.19347015]
[1693930296310,0.0198,25804.0,25803.0,6.19479015]
[1693930296508,0.0198,25804.0,25803.0,6.19449015]
[1693930296639,0.0198,25804.0,25803.0,6.19479015]
[1693930296847,0.0198,25804.0,25803.0,6.19515015]
[1693930297048,0.0198,25804.0,25803.0,6.10144358]
[1693930297246,0.0198,25804.0,25803.0,6.10156358]
[1693930297448,0.0198,25804.0,25803.0,6.24400358]
[1693930297715,0.0198,25804.0,25803.0,6.24508358]
[1693930297831,0.0198,25804.0,25803.0,6.33789015]
[1693930298029,0.0198,25804.0,25803.0,6.24496358]
[1693930298237,0.0198,25804.0,25803.0,6.34449015]
[1693930298437,0.0198,25804.0,25803.0,6.34509015]
[1693930298656,0.0198,25804.0,25803.0,6.34353015]
[1693930298876,0.0198,25804.0,25803.0,6.34185015]
[1693930299097,0.0198,25804.0,25803.0,6.930107]
[1693930299340,0.0198,25804.0,25803.0,6.796607]
[1693930299618,0.0198,25804.0,25803.0,6.796487]
[1693930299823,0.0198,25804.0,25803.0,6.69528043]
[1693930300028,0.0198,25804.0,25803.0,6.69540043]
[1693930300230,0.0198,25804.0,25803.0,6.69090043]
[1693930300433,0.0198,25804.0,25803.0,6.68886043]
[1693930300647,0.0198,25804.0,25803.0,6.68694043]
[1693930300848,0.0198,25804.0,25803.0,7.05711358]
[1693930301057,0.0198,25804.0,25803.0,7.04307358]
[1693930301288,0.0198,25804.0,25803.0,7.03179358]
[1693930301535,0.0198,25804.0,25803.0,7.03419358]
[1693930301686,0.0198,25804.0,25803.0,7.03455358]
[1693930301897,0.0198,25804.0,25803.0,7.03443358]
[1693930302351,0.0198,25804.0,25803.0,6.89552372]
[1693930302499,0.0198,25804.0,25803.0,6.89516372]
[1693930302695,0.0198,25804.0,25803.0,6.90188372]
[1693930302917,0.0198,25804.0,25803.0,6.90008372]
[1693930303131,0.0198,25804.0,25803.0,6.90020372]
[1693930303501,0.0198,25804.0,25803.0,6.90056372]
[1693930303709,0.0198,25804.0,25803.0,6.90068372]
[1693930304056,0.0198,25804.0,25803.0,6.90500372]
[1693930304256,0.0198,25804.0,25803.0,6.90884372]
[1693930304476,0.0198,25804.0,25803.0,6.90908372]
[1693930304675,0.0198,25804.0,25803.0,6.90824372]
[1693930304835,0.0198,25804.0,25803.0,6.90812372]
[1693930305045,0.0198,25804.0,25803.0,6.90800372]
[1693930305245,0.0198,25804.0,25803.0,7.04937545]
[1693930305563,0.0198,25804.0,25803.0,7.04961545]
[1693930305718,0.0198,25804.0,25803.0,6.90992372]
[1693930306111,0.0198,25804.0,25803.0,7.14218745]
[1693930306322,0.0198,25804.0,25803.0,7.14194745]
[1693930306529,0.0198,25804.0,25803.0,7.14170745]
[1693930306736,0.0198,25804.0,25803.0,7.14158745]
[1693930306938,0.0198,25804.0,25803.0,7.13906745]
[1693930307132,0.0198,25804.0,25803.0,7.13894745]
[1693930307332,0.0198,25804.0,25803.0,6.90699101]
[1693930307540,0.0198,25804.0,25803.0,6.90735101]
[1693930307754,0.0198,25804.0,25803.0,6.90687101]
[1693930307949,0.0198,25804.0,25803.0,6.90711101]
[1693930308101,0.0198,25804.0,25803.0,6.90723101]
[1693930308311,0.0198,25804.0,25803.0,7.04678148]
[1693930308733,0.0198,25804.0,25803.0,7.04666148]
[1693930308915,0.0198,25804.0,25803.0,7.04594148]
[1693930309098,0.0198,25804.0,25803.0,7.04582148]
[1693930309299,0.0198,25804.0,25803.0,6.84658104]
[1693930309503,0.0198,25804.0,25803.0,6.84250104]
[1693930309712,0.0198,25804.0,25803.0,6.84130104]
[1693930309911,0.0198,25804.0,25803.0,6.38439405]
[1693930310116,0.0198,25804.0,25803.0,6.16722258]
[1693930310310,0.0198,25804.0,25803.0,6.16086258]
[1693930310630,0.0198,25804.0,25803.0,6.16356258]
[1693930310973,0.0198,25804.0,25803.0,6.17016258]
[1693930311173,0.0198,25804.0,25803.0,6.17148258]
[1693930311312,0.0198,25804.0,25803.0,6.17106258]
[1693930311518,0.0198,25804.0,25803.0,6.31061305]
[1693930311768,0.0198,25804.0,25803.0,6.31109305]
[1693930311965,0.0198,25804.0,25803.0,6.31127305]
[1693930312171,0.0198,25804.0,25803.0,6.31151305]
[1693930312371,0.0198,25804.0,25803.0,6.31169305]
[1693930312575,0.0198,25804.0,25803.0,6.31187305]
[1693930312782,0.0198,25804.0,25803.0,6.86073143]
[1693930312923,0.0198,25804.0,25803.0,6.86157143]
[1693930313125,0.0198,25804.0,25803.0,6.85893143]
[1693930313348,0.0198,25804.0,25803.0,6.85641143]
[1693930313543,0.0198,25804.0,25803.0,6.85605143]
[1693930313750,0.0198,25804.0,25803.0,7.97165141]
[1693930313979,0.0198,25804.0,25803.0,7.96986131]
[1693930314191,0.0198,25804.0,25803.0,7.97322131]
[1693930314385,0.0198,25804.0,25803.0,7.97394131]
[1693930314591,0.0198,25804.0,25803.0,7.96950131]
[1693930314787,0.0198,25804.0,25803.0,8.06245971]
[1693930315000,0.0198,25804.0,25803.0,7.96926131]
[1693930315187,0.0198,25804.0,25803.0,7.96830131]
[1693930315421,0.0198,25804.0,25803.0,8.15122175]
[1693930315620,0.0198,25809.0,25808.0,3.566712]
[1693930315974,0.0198,25809.0,25808.0,5.99591052]
[1693930316182,0.0198,25809.0,25808.0,5.92900085]
[1693930316363,0.0198,25809.0,25808.0,5.91490085]
[1693930316617,0.0198,25809.0,25808.0,6.06412085]
[1693930316819,0.0198,25809.0,25808.0,6.04516085]
[1693930317029,0.0198,25809.0,25808.0,6.01358085]
[1693930317211,0.0198,25809.0,25808.0,5.98124085]
[1693930317449,0.0198,25809.0,25808.0,5.98292085]
[1693930317661,0.0198,25809.0,25808.0,5.57272299]
[1693930317867,0.0198,25809.0,25808.0,3.74747485]
[1693930318279,0.0198,25809.0,25808.0,3.79747485]
[1693930318697,0.0198,25809.0,25808.0,3.77247485]
[1693930318878,0.0198,25809.0,25808.0,3.79747485]
[1693930319522,0.0198,25809.0,25808.0,3.84987485]
[1693930319729,0.0198,25809.0,25808.0,3.87487485]
[1693930319939,0.0198,25809.0,25808.0,3.89987485]
[1693930321143,0.0198,25809.0,25808.0,3.96851485]
[1693930321374,0.0198,25809.0,25808.0,3.99281485]
[1693930321578,0.0198,25809.0,25808.0,4.08761699]
[1693930321787,0.0198,25809.0,25808.0,4.09121699]
[1693930321963,0.0198,25809.0,25808.0,3.99815485]
[1693930322113,0.0198,25809.0,25808.0,3.99059485]
[1693930322317,0.0198,25809.0,25808.0,3.98903485]
[1693930322532,0.0198,25809.0,25808.0,3.98531485]
[1693930322731,0.0198,25809.0,25808.0,3.98543485]
[1693930322967,0.0198,25809.0,25808.0,3.98381485]
[1693930323385,0.0198,25809.0,25808.0,3.98777485]
[1693930323542,0.0198,25809.0,25808.0,4.10929699]
[1693930323716,0.0198,25809.0,25808.0,4.11265699]
[1693930323916,0.0198,25809.0,25808.0,4.11109699]
[1693930324207,0.0198,25809.0,25808.0,4.10959699]
[1693930324413,0.0198,25809.0,25808.0,4.04462289]
[1693930324602,0.0198,25809.0,25808.0,4.04528289]
[1693930324791,0.0198,25809.0,25808.0,4.05434289]
[1693930325032,0.0198,25809.0,25808.0,4.14878503]
[1693930325240,0.0198,25809.0,25808.0,4.06106289]
[1693930325449,0.0198,25809.0,25808.0,4.15550503]
[1693930325659,0.0198,25809.0,25808.0,4.06274289]
[1693930325931,0.0198,25809.0,25808.0,4.15376503]
[1693930326120,0.0198,25809.0,25808.0,4.16030503]
[1693930326299,0.0198,25809.0,25808.0,4.16180503]
[1693930326682,0.0198,25809.0,25808.0,4.06856289]
[1693930326925,0.0198,25809.0,25808.0,4.16450503]
[1693930327102,0.0198,25809.0,25808.0,4.16468503]
[1693930327316,0.0198,25809.0,25808.0,5.49913097]
[1693930327518,0.0198,25809.0,25808.0,5.39754883]
[1693930327721,0.0198,25809.0,25808.0,5.24850883]
[1693930328015,0.0198,25809.0,25808.0,5.24700883]
[1693930328246,0.0198,25809.0,25808.0,5.24562883]
[1693930328458,0.0198,25809.0,25808.0,5.24544883]
[1693930328683,0.0198,25809.0,25808.0,5.24238883]
[1693930328858,0.0198,25809.0,25808.0,5.24094883]
[1693930329059,0.0198,25809.0,25808.0,5.24106883]
[1693930329264,0.0198,25809.0,25808.0,5.38014883]
[1693930329468,0.0198,25809.0,25808.0,5.58031312]
[1693930329670,0.0198,25809.0,25808.0,5.57851312]
[1693930329872,0.0198,25809.0,25808.0,5.57863312]
[1693930330120,0.0198,25809.0,25808.0,5.57791312]
[1693930330324,0.0198,25809.0,25808.0,5.57563312]
[1693930330526,0.0198,25809.0,25808.0,5.57479312]
[1693930330733,0.0198,25809.0,25808.0,5.57419312]
[1693930330937,0.0198,25809.0,25808.0,5.56999312]
[1693930331143,0.0198,25809.0,25808.0,5.56795312]
[1693930331324,0.0198,25809.0,25808.0,5.57287312]
[1693930331580,0.0198,25809.0,25808.0,5.4260199]
[1693930331729,0.0198,25809.0,25808.0,5.4414999]
[1693930332089,0.0198,25809.0,25808.0,5.4297399]
[1693930332314,0.0198,25809.0,25808.0,5.4494199]
[1693930332516,0.0198,25809.0,25808.0,5.4486999]
[1693930332713,0.0198,25809.0,25808.0,5.4482199]
[1693930332918,0.0198,25809.0,25808.0,5.4453399]
[1693930333118,0.0198,25809.0,25808.0,5.4452199]
[1693930333325,0.0198,25809.0,25808.0,5.68057527]
[1693930333530,0.0198,25809.0,25808.0,5.68285527]
[1693930333733,0.0198,25809.0,25808.0,5.68333527]
[1693930333957,0.0198,25809.0,25808.0,5.68633527]
[1693930334120,0.0198,25809.0,25808.0,5.63609527]
[1693930334320,0.0198,25809.0,25808.0,5.65989527]
[1693930334479,0.0198,25809.0,25808.0,5.68393527]
[1693930334683,0.0198,25809.0,25808.0,5.67529527]
[1693930334883,0.0198,25809.0,25808.0,5.64945527]
[1693930335085,0.0198,25809.0,25808.0,5.67787527]
[1693930335329,0.0198,25809.0,25808.0,5.67409527]
[1693930335509,0.0198,25809.0,25808.0,5.67793527]
[1693930335710,0.0198,25809.0,25808.0,5.68621527]
[1693930335928,0.0198,25809.0,25808.0,5.49133098]
[1693930336142,0.0198,25809.0,25808.0,5.47345098]
[1693930336583,0.0198,25809.0,25808.0,5.47585098]
[1693930336783,0.0198,25809.0,25808.0,5.33995098]
[1693930336935,0.0198,25809.0,25808.0,5.33809098]
[1693930337136,0.0198,25809.0,25808.0,5.33383098]
[1693930337519,0.0198,25809.0,25808.0,5.10251303]
[1693930337763,0.0198,25809.0,25808.0,5.09297303]
[1693930337966,0.0198,25809.0,25808.0,5.28417834]
[1693930338251,0.0198,25809.0,25808.0,5.52143629]
[1693930338457,0.0198,25809.0,25808.0,5.52131629]
[1693930338660,0.0198,25809.0,25808.0,5.52125629]
[1693930338864,0.0198,25809.0,25808.0,5.33569098]
[1693930339305,0.0198,25809.0,25808.0,5.33287098]
[1693930339509,0.0198,25809.0,25808.0,5.33209098]
[1693930339693,0.0198,25809.0,25808.0,5.33215098]
[1693930339921,0.0198,25809.0,25808.0,5.33527098]
[1693930340124,0.0198,25809.0,25808.0,5.33629098]
[1693930340329,0.0198,25809.0,25808.0,5.49025098]
[1693930340531,0.0198,25809.0,25808.0,5.48917098]
[1693930340736,0.0198,25809.0,25808.0,5.47969098]
[1693930340939,0.0198,25809.0,25808.0,5.47789098]
[1693930341090,0.0198,25809.0,25808.0,5.47393098]
[1693930341299,0.0198,25809.0,25808.0,5.34049098]
[1693930341534,0.0198,25809.0,25808.0,5.33401098]
[1693930341704,0.0198,25809.0,25808.0,5.33125098]
[1693930341906,0.0198,25809.0,25808.0,5.33719098]
[1693930342108,0.0198,25809.0,25808.0,5.33971098]
[1693930342318,0.0198,25809.0,25808.0,5.33983098]
[1693930342514,0.0198,25809.0,25808.0,5.34061098]
[1693930342837,0.0198,25809.0,25808.0,5.33827098]
[1693930343041,0.0198,25809.0,25808.0,5.33803098]
[1693930343242,0.0198,25809.0,25808.0,6.4562744]
[1693930343445,0.0198,25809.0,25808.0,6.4562144]
[1693930343664,0.0198,25809.0,25808.0,6.4519544]
[1693930343867,0.0198,25809.0,25808.0,6.4487144]
[1693930344101,0.0198,25809.0,25808.0,6.4421744]
[1693930344311,0.0198,25809.0,25808.0,4.87088153]
[1693930344529,0.0198,25809.0,25808.0,4.79468153]
[1693930344943,0.0198,25809.0,25808.0,4.60892198]
[1693930345151,0.0198,25809.0,25808.0,4.79468153]
[1693930345358,0.0198,25809.0,25808.0,4.60892198]
[1693930345764,0.0198,25809.0,25808.0,4.68644198]
[1693930345919,0.0198,25809.0,25808.0,4.68404198]
[1693930346129,0.0198,25809.0,25808.0,4.68428198]
[1693930346326,0.0198,25809.0,25808.0,4.68452198]
[1693930346527,0.0198,25809.0,25808.0,4.68470198]
[1693930346771,0.0198,25809.0,25808.0,4.87586153]
[1693930346952,0.0198,25809.0,25808.0,4.87334153]
[1693930347153,0.0198,25809.0,25808.0,4.86974153]
[1693930347413,0.0198,25809.0,25808.0,4.68176198]
[1693930347616,0.0198,25809.0,25808.0,4.68710198]
[1693930347817,0.0198,25809.0,25808.0,4.88066153]
[1693930348030,0.0198,25809.0,25808.0,4.69682198]
[1693930348216,0.0198,25809.0,25808.0,4.69670198]
[1693930348557,0.0198,25809.0,25808.0,4.69718198]
[1693930348756,0.0198,25809.0,25808.0,4.69766198]
[1693930348896,0.0198,25809.0,25808.0,4.68938198]
[1693930349111,0.0198,25809.0,25808.0,4.68878198]
[1693930349303,0.0198,25809.0,25808.0,4.68896198]
[1693930349490,0.0198,25809.0,25808.0,4.68926198]
[1693930349687,0.0198,25809.0,25808.0,4.68938198]
[1693930349897,0.0198,25809.0,25808.0,4.68962198]
[1693930350096,0.0198,25809.0,25808.0,4.68980198]
[1693930350308,0.0198,25809.0,25808.0,4.68860198]
[1693930350524,0.0198,25809.0,25808.0,4.68884198]
[1693930350906,0.0198,25809.0,25808.0,4.68854198]
[1693930351109,0.0198,25809.0,25808.0,4.68932198]
[1693930351288,0.0198,25809.0,25808.0,4.68890198]
[1693930351492,0.0198,25809.0,25808.0,4.32372745]
[1693930351711,0.0198,25809.0,25808.0,4.87503722]
[1693930351919,0.0198,25809.0,25808.0,4.87533722]
[1693930352128,0.0198,25809.0,25808.0,4.87737722]
[1693930352326,0.0198,25809.0,25808.0,4.87743722]
[1693930352531,0.0198,25809.0,25808.0,4.69239767]
[1693930352685,0.0198,25809.0,25808.0,4.69377767]
[1693930352898,0.0198,25809.0,25808.0,4.69515767]
[1693930353093,0.0198,25809.0,25808.0,4.69533767]
[1693930353288,0.0198,25809.0,25808.0,4.69497767]
[1693930353491,0.0198,25809.0,25808.0,4.69731767]
[1693930353722,0.0198,25809.0,25808.0,4.70409767]
[1693930353956,0.0198,25809.0,25808.0,4.70541767]
[1693930354183,0.0198,25809.0,25808.0,4.70559767]
[1693930354363,0.0198,25809.0,25808.0,4.70607767]
[1693930354518,0.0198,25809.0,25808.0,4.70643767]
[1693930354718,0.0198,25809.0,25808.0,4.70805767]
[1693930354928,0.0198,25809.0,25808.0,4.70787767]
[1693930355130,0.0198,25809.0,25808.0,4.70853767]
[1693930355401,0.0198,25809.0,25808.0,4.70889767]
[1693930355607,0.0198,25809.0,25808.0,4.71357767]
[1693930355798,0.0198,25809.0,25808.0,4.89465722]
[1693930356001,0.0198,25809.0,25808.0,4.89381722]
[1693930356207,0.0198,25809.0,25808.0,4.89417722]
[1693930356386,0.0198,25809.0,25808.0,4.70775767]
[1693930356543,0.0198,25809.0,25808.0,4.70871767]
[1693930356769,0.0198,25809.0,25808.0,6.2849987]
[1693930356954,0.0198,25809.0,25808.0,6.3011987]
[1693930357155,0.0198,25809.0,25808.0,6.3049787]
[1693930357371,0.0198,25809.0,25808.0,6.3047387]
[1693930357558,0.0198,25809.0,25808.0,6.3007187]
[1693930357756,0.0198,25809.0,25808.0,6.3002987]
[1693930357957,0.0198,25809.0,25808.0,5.18329085]
[1693930358259,0.0198,25809.0,25808.0,6.30480781]
[1693930358462,0.0198,25809.0,25808.0,6.30414781]
[1693930358662,0.0198,25809.0,25808.0,6.30354781]
[1693930358862,0.0198,25809.0,25808.0,6.30942781]
[1693930359061,0.0198,25809.0,25808.0,6.54142318]
[1693930359277,0.0198,25809.0,25808.0,6.54118318]
[1693930359486,0.0198,25809.0,25808.0,6.12030826]
[1693930359684,0.0198,25809.0,25808.0,6.35255921]
[1693930359892,0.0198,25809.0,25808.0,6.33509921]
[1693930360137,0.0198,25809.0,25808.0,6.33443921]
[1693930360377,0.0198,25809.0,25808.0,6.32747921]
[1693930360588,0.0198,25809.0,25808.0,6.32585921]
[1693930360788,0.0198,25809.0,25808.0,6.32633921]
[1693930360993,0.0198,25809.0,25808.0,6.32729921]
[1693930361176,0.0198,25809.0,25808.0,6.32759921]
[1693930361382,0.0198,25809.0,25808.0,6.32633921]
[1693930361584,0.0198,25809.0,25808.0,6.32747921]
[1693930361789,0.0198,25809.0,25808.0,6.32579921]
[1693930362054,0.0198,25809.0,25808.0,6.32585921]
[1693930362257,0.0198,25809.0,25808.0,6.32591921]
[1693930362456,0.0198,25809.0,25808.0,6.32573921]
[1693930362662,0.0198,25809.0,25808.0,6.41685921]
[1693930362872,0.0198,25809.0,25808.0,6.00491921]
[1693930363113,0.0198,25809.0,25808.0,5.90569921]
[1693930363335,0.0198,25809.0,25808.0,4.96395054]
[1693930363548,0.0198,25809.0,25808.0,4.96689054]
[1693930363778,0.0198,25809.0,25808.0,4.97001054]
[1693930363992,0.0198,25809.0,25808.0,4.96941054]
[1693930364209,0.0198,25809.0,25808.0,4.96977054]
[1693930364425,0.0198,25809.0,25808.0,4.78628225]
[1693930364656,0.0198,25809.0,25808.0,4.79132225]
[1693930364874,0.0198,25809.0,25808.0,4.79126225]
[1693930365090,0.0198,25809.0,25808.0,4.78748225]
[1693930365310,0.0198,25809.0,25808.0,4.78544225]
[1693930365513,0.0198,25809.0,25808.0,4.78844225]
[1693930365732,0.0198,25809.0,25808.0,4.78898225]
[1693930365935,0.0198,25809.0,25808.0,4.78826225]
[1693930366112,0.0198,25809.0,25808.0,4.78838225]
[1693930366327,0.0198,25809.0,25808.0,4.78850225]
[1693930366471,0.0198,25809.0,25808.0,4.78904225]
[1693930366686,0.0198,25809.0,25808.0,4.72046225]
[1693930366901,0.0198,25809.0,25808.0,4.77950225]
[1693930367140,0.0198,25809.0,25808.0,4.78676225]
[1693930367377,0.0198,25809.0,25808.0,4.78706225]
[1693930367708,0.0198,25809.0,25808.0,4.78658225]
[1693930367885,0.0198,25809.0,25808.0,4.78670225]
[1693930368093,0.0198,25809.0,25808.0,4.78682225]
[1693930368318,0.0198,25809.0,25808.0,4.78648204]
[1693930368520,0.0198,25809.0,25808.0,4.78620234]
[1693930368713,0.0198,25809.0,25808.0,4.78586286]
[1693930368914,0.0198,25809.0,25808.0,4.78576397]
[1693930369113,0.0198,25809.0,25808.0,4.78638508]
[1693930369319,0.0198,25809.0,25808.0,4.78328619]
[1693930369598,0.0198,25809.0,25808.0,4.77748905]
[1693930369807,0.0198,25809.0,25808.0,4.77661227]
[1693930370002,0.0198,25809.0,25808.0,4.77645591]
[1693930370211,0.0198,25809.0,25808.0,4.78329591]
[1693930370390,0.0198,25809.0,25808.0,4.78491591]
[1693930370594,0.0198,25809.0,25808.0,4.78437591]
[1693930370836,0.0198,25809.0,25808.0,4.78407591]
[1693930371022,0.0198,25809.0,25808.0,4.77969591]
[1693930371167,0.0198,25809.0,25808.0,4.77741591]
[1693930371381,0.0198,25809.0,25808.0,4.77783591]
[1693930371603,0.0198,25809.0,25808.0,4.78479591]
[1693930371803,0.0198,25809.0,25808.0,4.78401591]
[1693930372046,0.0198,25809.0,25808.0,4.78425591]
[1693930372223,0.0198,25809.0,25808.0,4.78437591]
[1693930372426,0.0198,25809.0,25808.0,4.78401591]
[1693930372655,0.0198,25809.0,25808.0,4.79493591]
[1693930372847,0.0198,25809.0,25808.0,4.79607591]
[1693930373209,0.0198,25809.0,25808.0,4.79601591]
[1693930373407,0.0198,25809.0,25808.0,5.91406982]
[1693930373611,0.0198,25809.0,25808.0,5.91316982]
[1693930373898,0.0198,25809.0,25808.0,5.91844982]
[1693930374306,0.0198,25809.0,25808.0,5.91887045]
[1693930374499,0.0198,25809.0,25808.0,5.91923045]
[1693930374706,0.0198,25809.0,25808.0,5.91947045]
[1693930374864,0.0198,25809.0,25808.0,5.92559045]
[1693930375038,0.0198,25809.0,25808.0,5.92733045]
[1693930375243,0.0198,25809.0,25808.0,5.93147045]
[1693930375449,0.0198,25809.0,25808.0,5.7098395]
[1693930375679,0.0198,25809.0,25808.0,5.8137395]
[1693930375885,0.0198,25809.0,25808.0,6.3531195]
[1693930376095,0.0198,25809.0,25808.0,6.3627195]
[1693930376395,0.0198,25809.0,25808.0,6.3633195]
[1693930376590,0.0198,25809.0,25808.0,6.3609195]
[1693930376790,0.0198,25809.0,25808.0,6.2212395]
[1693930377115,0.0198,25809.0,25808.0,6.2140395]
[1693930377313,0.0198,25809.0,25808.0,6.2127195]
[1693930377512,0.0198,25809.0,25808.0,6.2118795]
[1693930377753,0.0198,25809.0,25808.0,6.2106795]
[1693930377926,0.0198,25809.0,25808.0,6.2136795]
[1693930378253,0.0198,25809.0,25808.0,6.2122995]
[1693930378372,0.0198,25809.0,25808.0,6.2126595]
[1693930378567,0.0198,25809.0,25808.0,6.2121795]
[1693930378835,0.0198,25809.0,25808.0,6.21150179]
[1693930379031,0.0198,25809.0,25808.0,6.21222179]
[1693930379239,0.0198,25809.0,25808.0,6.21210179]
[1693930379478,0.0198,25809.0,25808.0,6.21000179]
[1693930379638,0.0198,25809.0,25808.0,6.31910018]
[1693930380059,0.0198,25809.0,25808.0,4.78166954]
[1693930380261,0.0198,25809.0,25808.0,4.78490954]
[1693930380457,0.0198,25809.0,25808.0,4.78424954]
[1693930380622,0.0198,25809.0,25808.0,4.78094954]
[1693930380824,0.0198,25809.0,25808.0,4.78388954]
[1693930381080,0.0198,25809.0,25808.0,4.78406954]
[1693930381288,0.0198,25809.0,25808.0,4.78418954]
[1693930381491,0.0198,25809.0,25808.0,4.78436954]
[1693930381716,0.0198,25809.0,25808.0,4.78448954]
[1693930381965,0.0198,25809.0,25808.0,4.78460954]
[1693930382161,0.0198,25809.0,25808.0,4.78442954]
[1693930382344,0.0198,25809.0,25808.0,4.78508763]
[1693930382519,0.0198,25809.0,25808.0,4.78520763]
[1693930382850,0.0198,25809.0,25808.0,5.83295084]
[1693930383058,0.0198,25809.0,25808.0,2.37632019]
[1693930383266,0.0198,25809.0,25808.0,2.15865922]
[1693930383267,0.27311865,25809.0,25808.0,2.15865922]
[1693930383475,0.27311865,25809.0,25808.0,1.01859575]
[1693930383882,0.27311865,25809.0,25808.0,0.87902247]
[1693930384288,0.27311865,25809.0,25808.0,0.85402247]
[1693930384519,0.26811865,25809.0,25808.0,1.12902247]
[1693930384725,0.26811865,25809.0,25808.0,1.15402247]
[1693930384929,0.26811865,25809.0,25808.0,1.17902247]
[1693930385341,0.26811865,25809.0,25808.0,1.15402247]
[1693930385550,2.02036465,25809.0,25808.0,0.76097058]
[1693930385773,2.79528765,25809.0,25808.0,0.78597058]
[1693930385985,2.02036465,25809.0,25808.0,0.78597058]
[1693930386396,2.79077249,25809.0,25808.0,0.78597058]
[1693930386611,2.01584949,25809.0,25808.0,0.78597058]
[1693930387272,2.01584949,25809.0,25808.0,0.76097058]
[1693930387486,2.01584949,25809.0,25808.0,0.78597058]
[1693930387986,2.17092949,25809.0,25808.0,0.76097058]
[1693930388192,2.17092949,25809.0,25808.0,0.78597058]
[1693930388415,2.17092949,25809.0,25808.0,0.76097058]
[1693930388623,2.72942283,25809.0,25808.0,0.76097058]
[1693930388988,2.72942283,25809.0,25808.0,0.06097058]